Cogmind - Beta 9.1 @@@ ROGUE MODE // 2019.11.03 @ 23:14:15 // Halloween2019/Abominations Player: Trione Result: Destroyed by Minor Abomination with Etherial Claws Performance ------------- Evolutions (1) 500 Regions Visited (2) 400 Robots Destroyed (21) 105 Value Destroyed (969) 969 Prototype IDs (0) 0 Alien Tech Used (0) 0 Bonus (0) 0 TOTAL SCORE: 1974 Bonus ------- None Cogmind --------- Core Integrity 0/400 Matter 190/400 Energy 100/100 System Corruption 3% Temperature Cool (0) Location -9/Materials Parts ------- Power (1) Propulsion (2) Light Treads Utility (3) Large Storage Unit Large Storage Unit Medium Matter Pod Weapon (3) Light Assault Rifle Heavy Assault Rifle Inventory (16) Ion Engine Ion Engine Light Treads Improved Treads Wheel Improved Heat Sink Small Storage Unit Medium Storage Unit Mini Grenade Launcher Peak State ------------ Power Ion Engine Propulsion Light Treads Compact Wheel Utility Large Storage Unit Large Storage Unit High-powered Tractor Beam Weapon Beam Rifle Heavy Assault Rifle Heavy Assault Rifle Inventory Ion Engine Ion Engine Light Treads Wheel Compact Wheel Improved Heat Sink Small Storage Unit Medium Storage Unit Particle Gun Light Assault Rifle Heavy Assault Rifle Mini Grenade Launcher [Rating: 14] Favorites ----------- Power Ion Engine Engine Ion Engine Propulsion Compact Wheel Treads Light Treads Wheel Compact Wheel Utility Small Storage Unit Device High-powered Tractor Beam Storage Small Storage Unit Weapon Heavy Assault Rifle Energy Gun Small Laser Ballistic Gun Heavy Assault Rifle Build | -11 -10 -9 ------- Run | Scr Mat Mat Slots Evolved 2 | . . 2 Power . | . . . Propulsion . | . . . Utility 1 | . . 1 Weapon 1 | . . 1 Parts Attached 28 | 7 7 14 Power 2 | 1 . 1 Engine 2 | 1 . 1 Core . | . . . Reactor . | . . . Propulsion 7 | 2 1 4 Treads 3 | . . 3 Leg . | . . . Wheel 4 | 2 1 1 Hover . | . . . Flight . | . . . Utility 6 | 2 2 2 Device 1 | . . 1 Storage 5 | 2 2 1 Processor . | . . . Hackware . | . . . Protection . | . . . Artifact . | . . . Weapon 13 | 2 4 7 Energy Gun 6 | 1 2 3 Energy Cannon . | . . . Ballistic Gun 7 | 1 2 4 Ballistic Cannon . | . . . Launcher . | . . . Special Weapon . | . . . Impact Weapon . | . . . Slashing Weapon . | . . . Piercing Weapon . | . . . Special Melee Weapon . | . . . Unidentified Prototypes . | . . . Parts Lost 10 | . 2 8 Power 1 | . . 1 Propulsion 3 | . 1 2 Utility 1 | . . 1 Weapon 5 | . 1 4 Highest Loss Streak 5 | . 1 5 Average Slot Usage (%) 95 | . 99 90 Engine 12 | . 14 10 Treads 4 | . . 9 Wheel 21 | . 27 11 Device 1 | . . 4 Storage 26 | . 28 25 Energy Gun 7 | . 8 5 Ballistic Gun 20 | . 19 23 Naked Turns . | . . . Heaviest Build 48 | 15 43 48 Greatest Support 40 | 32 32 40 Greatest Overweight (x) 2 | . 1 2 Average Overweight (x) . | . . 1 Largest Inventory Capacity 16 | 8 16 16 Average Capacity 11 | 5 9 16 Most Carried 14 | 5 13 14 Average Carried 9 | 3 7 11 Final Capacity 16 | 8 16 16 Final Carried 12 | 5 12 9 Class Distribution -------------------- 78% | Mutant 21% | Gunner Dominant Class ---------------- Mutant | -10/Materials Gunner | -9/Materials Resources | -11 -10 -9 ----------- Run | Scr Mat Mat Matter Collected 877 | 277 251 349 Remotely 10 | . . 10 Salvage Created 942 | 60 455 427 Parts 57 | 2 30 25 Haulers Intercepted . | . . . Recyclers Shooed 1 | . 1 . Parts Field Recycled . | . . . Retrieved Matter . | . . . Parts Self-Destructed . | . . . Prevented . | . . . Kills | -11 -10 -9 ------- Run | Scr Mat Mat Combat Hostiles Destroyed 16 | . 8 8 Guns 15 | . 8 7 Classes Destroyed 7 | 1 5 1 Worker 1 | . 1 . Recycler 2 | 1 1 . Operator 1 | . 1 . Watcher 1 | . 1 . Grunt 4 | . 4 . Sentry 1 | . . 1 Abomination 11 | . 4 7 Best Kill Streak 4 | 1 3 4 Combat Bots Only 4 | . 2 4 Max Kills in Single Turn 1 | 1 1 1 Gunslinging . | . . . Exploded . | . . . Melee . | . . . Uniques/NPCs Destroyed . | . . . Combat | -11 -10 -9 -------- Run | Scr Mat Mat Damage Taken 2936 | . 459 2477 Core 522 | . 91 431 Absorbed by Shields . | . . . Core Remaining (%) 81 | 100 63 . Volleys Fired 123 | 7 48 68 Largest 3 | 2 2 3 Hottest 108 | 60 63 108 Shots Fired 268 | 14 90 164 Gun 268 | 14 90 164 Cannon . | . . . Launcher . | . . . Special . | . . . Kinetic 199 | 7 70 122 Thermal 69 | 7 20 42 Explosive . | . . . Electromagnetic . | . . . Robot Hit Streak 19 | 4 10 19 Robot Miss Streak 4 | 1 3 4 Penetration Max . | . . . Secondary Targets 2 | . . 2 Max Gunslinging Chain 1 | . . 1 Shots Hit Robots 203 | 10 63 130 Core Hits 61 | 3 23 35 Critical Hits 2 | . . 2 Critical Kills . | . . . Critical Parts Destroyed 2 | . . 2 Melee Attacks . | . . . Impact . | . . . Slashing . | . . . Piercing . | . . . Sneak Attacks . | . . . Combat Hostiles . | . . . Follow-up Attacks . | . . . Damage Inflicted 2945 | 98 784 2063 Guns 2945 | 98 784 2063 Cannons . | . . . Explosions . | . . . Melee . | . . . Ramming . | . . . Kinetic 2103 | 33 595 1475 Thermal 842 | 65 189 588 Explosive . | . . . Electromagnetic . | . . . Impact . | . . . Slashing . | . . . Piercing . | . . . Highest Corruption 3 | . . 3 Average Corruption 2 | . . 2 Corruption Purged . | . . . Effects 10 | . . 10 Message Errors 1 | . . 1 Matter Fused 1 | . . 1 Energy Discharges 1 | . . 1 Data Loss (minor) 1 | . . 1 Targeting Errors 5 | . . 5 Weapon Failures 1 | . . 1 Overload Shots . | . . . Overflow Damage . | . . . Projectiles . | . . . Explosions . | . . . Melee . | . . . Knockbacks . | . . . Impact . | . . . Kinetic . | . . . Secondary . | . . . Self-Inflicted Damage . | . . . Shots . | . . . Rammed . | . . . Targets Rammed . | . . . Kicked . | . . . Crushed . | . . . Highest Temperature 504 | 20 45 504 Average Temperature 161 | 15 18 218 Received Heat Transfer 602 | . 123 479 Effects 16 | . . 16 Shutdowns 1 | . . 1 Interference 2 | . . 2 Matter Decay 2 | . . 2 Short Circuit 2 | . . 2 Damage (minor) 2 | . . 2 Damage (major) 7 | . . 7 Siege Activations . | . . . Robots Corrupted . | . . . Combat Hostiles . | . . . Parts Fried . | . . . Impact Corruptions . | . . . Robots Melted 1 | . . 1 Combat Hostiles 1 | . . 1 Parts Melted 3 | . . 3 Heat Transferred 636 | 150 166 320 Parts Sabotaged . | . . . Parts Stolen . | . . . Parts Stripped . | . . . Power Chain Reactions . | . . . Missiles Intercepted . | . . . Alert | -11 -10 -9 ------- Run | Scr Mat Mat Peak Influence 138 | 5 138 48 Average Influence 34 | 1 55 9 Maximum Alert Level . | . . . Low Security (%) 100 | . . . Level 1 . | . . . Level 2 . | . . . Level 3 . | . . . Level 4 . | . . . Level 5 . | . . . High Security . | . . . Max Security . | . . . Squads Dispatched 17 | . 6 11 Investigation 5 | . 2 3 Extermination . | . . . Reinforcement 6 | . 4 2 Assault 6 | . . 6 Garrison . | . . . Intercept . | . . . Construction Impeded . | . . . Haulers Reinforced . | . . . Stealth | -11 -10 -9 --------- Run | Scr Mat Mat Distress Signals 10 | . 1 9 Communications Jammed . | . . . Distress Signals . | . . . Times Spotted 31 | . 19 12 Peak Tracking Total 6 | . 3 6 Tactical Retreats 7 | . 4 3 Traps | -11 -10 -9 ------- Run | Scr Mat Mat Traps Triggered 1 | . . 1 Indirectly . | . . . Trap Hack Attempts . | . . . Triggered . | . . . Disarmed . | . . . Reprogrammed . | . . . Reused . | . . . Traps Extracted . | . . . Installed . | . . . Triggered . | . . . Machines | -11 -10 -9 ---------- Run | Scr Mat Mat Machines Disabled 3 | . 2 1 Max in Single Turn 1 | . 1 1 Machines Sabotaged . | . . . Garrisons Compromised . | . . . Overloaded Fab Kills . | . . . Fab Network Shutdowns . | . . . Hacking | -11 -10 -9 --------- Run | Scr Mat Mat Machines Accessed 4 | . 4 . Terminals 3 | . 3 . Fabricators . | . . . Repair Stations . | . . . Recycling Units 1 | . 1 . Scanalyzers . | . . . Garrison Access . | . . . Total Hacks 9 | . 9 . Successful 5 | . 5 . Failed 4 | . 4 . Catastrophic . | . . . Database Lockouts . | . . . Manual 8 | . 8 . Terminals 8 | . 8 . Fabricators . | . . . Repair Stations . | . . . Recycling Units 1 | . 1 . Scanalyzers . | . . . Garrison Access . | . . . Terminal Hacks 1 | . 1 . Zone Layout 1 | . 1 . Fabricator Hacks . | . . . Repair Station Hacks . | . . . Recycling Unit Hacks 1 | . 1 . Retrieve Components 1 | . 1 . Scanalyzer . | . . . Garrison Access Hacks . | . . . Unauthorized Hacks 8 | . 8 . Terminals 3 | . 3 . Track 3 | . 3 . Fabricators . | . . . Repair Stations . | . . . Recycling Units . | . . . Scanalyzers . | . . . Garrison Access . | . . . Data Cores Recovered 1 | . 1 . Used 1 | . 1 . Hacking Detections 2 | . 2 . Full Trace Events . | . . . Feedback Events . | . . . Feedback Blocked . | . . . Robot Schematics Acquired . | . . . Robots Built . | . . . Matter . | . . . Time . | . . . Total Robot Build Rating . | . . . Part Schematics Acquired . | . . . Parts Built . | . . . Matter . | . . . Time . | . . . Total Part Build Rating . | . . . Parts Repaired . | . . . Time . | . . . Parts Recycled . | . . . Recycled Matter . | . . . Retrieved Matter . | . . . Retrieved Components 3 | . 3 . Parts Scanalyzed . | . . . Part Schematics Acquired . | . . . Parts Damaged . | . . . Bothacking | -11 -10 -9 ------------ Run | Scr Mat Mat Used RIF Installer . | . . . Robots Hacked . | . . . Non-combat . | . . . Combat . | . . . Robot Hacks Applied . | . . . Relay Couplers Released . | . . . Robots Rewired . | . . . Allies Hacked . | . . . Hacks Repelled . | . . . Allies | -11 -10 -9 -------- Run | Scr Mat Mat Total Allies . | . . . Largest Group . | . . . Highest-Rated Group . | . . . Highest-Rated Ally . | . . . Total Orders . | . . . Ally Attacks . | . . . Total Damage . | . . . Kills . | . . . Allies Corrupted . | . . . Allies Melted . | . . . Intel | -11 -10 -9 ------- Run | Scr Mat Mat Robot Analysis Total . | . . . Derelict Logs Recovered . | . . . Drone Launches . | . . . Drone Recoveries . | . . . Exploration | -11 -10 -9 ------------- Run | Scr Mat Mat Turns Passed 1545 | 116 848 581 Spaces Moved 948 | 84 608 256 Core 5 | 5 . . Treads 38 | . . 38 Legs . | . . . Wheels 905 | 79 608 218 Hover . | . . . Flight . | . . . Fastest Speed 50 | 50 100 110 Average Speed 106 | 97 101 120 Slowest Speed 200 | 100 110 200 Overloaded Moves . | . . . Propulsion Burnouts . | . . . Robots Hopped . | . . . Cave-ins Triggered . | . . . Exploration Rate (%) 29 | 4 68 17 Regions Visited 2 Branch Regions . Pre-discovered Areas . | . . . Known Exits Taken . | . . . Unknown Exits Taken 2 | 1 1 . Scrap Searched . | . . . Spaces Dug . | . . . Terrain Destroyed . | . . . Melee . | . . . Projectile . | . . . AOE . | . . . Actions | -11 -10 -9 --------- Run | Scr Mat Mat Total 1215 | 102 754 359 Wait 97 | . 80 17 Move 946 | 83 607 256 Hop . | . . . Pick Up 17 | 5 8 4 Fast Attach 11 | 7 . 4 Attach 10 | . 2 8 Detach . | . . . Swap 7 | . 5 2 Drop 4 | . 4 . Fire 123 | 7 48 68 Melee . | . . . Ram . | . . . Kick . | . . . Crush . | . . . Escape Stasis . | . . . Rewire . | . . . Trap . | . . . Miscellaneous . | . . . Route ------- -11/Scrapyard -10/Materials (discovered 3 exits: [*Mat x3]) -9/Materials History --------- Turn | Location | Event 12 | -11/Scrapyard | Discovered new exit (range 15) 117 | -11/Scrapyard | Entered Materials 304 | -10/Materials | Build established: Mutant 470 | -10/Materials | Discovered new exit (range 9) 764 | -10/Materials | Discovered new exit (range 11) 909 | -10/Materials | Discovered new exit (range 14) 965 | -10/Materials | Entered another Materials area 965 | -9/Materials | Evolved 2 slots: Utility x1, Weapon x1 1474 | -9/Materials | Core integrity fell below 50% 1525 | -9/Materials | Core integrity fell below 20% 1546 | -9/Materials | Destroyed by Minor Abomination with Etherial Claws Last Messages --------------- 01489_ Power failure, Ion Engine shutdown. 01492_ Overheating: Matter decay (-51). 01500_ Beam Rifle destroyed. 01501_ Overheating: Lrg. Storage Unit damaged (-133). 01501_ Minor Abomination suffers critical hit. 01501_ Destroyed Hvy. Assault Rifle. 01503_ Overheating: Matter decay (-25). 01511_ Minor Abomination suffers critical hit. 01511_ Destroyed Sml. Laser. 01512_ Overheating: Short circuit. 01512_ Hvy. Assault Rifle permanently disabled. 01512_ ,WRMK 01521_ Hvy. Assault Rifle destroyed. 01530_ ALERT: Dispatching additional forces to engage threats. 01534_ Particle Gun destroyed. 01536_ Ion Engine destroyed. 01538_ Lgt. Treads destroyed. 01545_ Frozen by Ice Anomaly. Map ----- +----------------------------------------------------+ | ????????????????????????????????????????????????? | | ????????????????????????????????????????????????? | | ????????????????????????????????????????????????? | | ????????????????????????????????????????????????? | | ????????????????????????????????????????????????? | | ????????????????????????????????????????????????? | | ????????????????????????????????????????????????? | | ????????????????????????????????????????????????? | | ????????????????????????????????????????????????? | | ????????????????????????????????????????????????? | | ????????????????????????????????????????????????? | | ????????????????????????????????????????????????? | | ????????????????????????????????????????????????? | | ????????????????????????????????????????????????? | | ????????????????????????????????????????????????? | | ????????????????????####????????????????????????? | | ??????#########?????# ?????????????????????????? | | ??????# #?????# #?????????????????????????? | | ??????# """ ####### #?????????????????????????? | | ??????# "" + #?????????????????????????? | | ??????# "" ####### #?????????????????????????? | | ??????# = #?????# #?????????????????????????? | | ??????######+##???### ###???????????????????????? | | ???????????# #????# #???????????????????????? | | ???????????# #????# ###########?????????????? | | ???????????# #????# @A % ??????? | | ???????????# #????# ###########?????????????? | | ???????????# #????# #???????????????????????? | | ???????????# #????#######???????????????????????? | | ???????????# #??????????????????????????????????? | | ?????????###+###????????????????????????????????? | | ?????????# #????????????????????????????????? | | ?????????# #????????????????????????????????? | | ?????????# #????????????????????????????????? | | ?????????# #????????????????????????????????? | | ########## #????????????????????????????????? | | # #????????????????????????????????? | | + #????????????????????????????????? | | # #????????????????????????????????? | | ########+# #????????????????????????????????? | | # #????????????????????????????????? | | # #????????????????????????????????? | | # #????????????????????????????????? | | #######????????????????????????????????? | | #??????????????????????????????????????? | | #??????????????????????????????????????? | | #??????????????????????????????????????? | | % #??????????????????????????????????????? | | ##/####/##??????????????????????????????????????? | | ?# #??# #???????????????????????????????????????? | +----------------------------------------------------+ Best States ------------- Heat Dissipation 28 Energy Generation 10 Energy Capacity 250 Matter Stores 366 Matter Capacity 400 Sight Range 16 Terrain Scan Density 10 Evasion (%) 40 Recoil Reduction 2 Item Schematics ----------------- None Robot Schematics ------------------ None Fabricated ------------ Nothing Alien Tech Used ----------------- None Achievements -------------- None Challenges ------------ None Game ------ Seed MomentumColdDoomcannon Manual? 0 Play Time 00:13:50 Cumulative 811.1 hours Start 2019.11.03 @ 23:04:06 End 2019.11.03 @ 23:14:15 Sessions 1 Manual Loads 0 Difficulty Rogue Special Mode Halloween2019/Abominations Game No. 313 Rogue 313 Adventurer 0 Explorer 0 Win Type - Total 20 Types 10/1/7/0/0/0/2 Lore% 95 Gallery% 95 Achievement% 79 Wizard Run 0 Options --------- ASCII 0 Keyboard 1 Movement Vi Keybinds 0 Fullscreen 0 Font 12/Crisp Map View 76x50 Tactical HUD 1 Map Filters NONE Filters NONE Steam X RUN: 88d7adc4-afcd-4190-ae48-d1d919380aef